bitfinex/quotes_BTCUSD_20251202
["timestamp","ask_amount","ask_price","bid_price","bid_amount"]
[1764641565236,0.00025354,86678.0,86676.0,0.23074242]
[1764641565560,0.00025354,86678.0,86675.0,0.24228273]
[1764641566009,0.00025354,86678.0,86676.0,0.23074275]
[1764641566347,0.00025354,86678.0,86675.0,0.24228273]
[1764641566549,0.01153708,86677.0,86673.0,0.01165339]
[1764641566773,0.24227879,86677.0,86673.0,0.01165339]
[1764641566980,0.24227879,86677.0,86673.0,0.10486339]
[1764641567870,0.01153721,86676.0,86674.0,0.04521]
[1764641569331,0.23074704,86675.0,86674.0,0.04521]
[1764641569529,0.23074704,86675.0,86673.0,0.00011578]
[1764641571172,0.01179049,86678.0,86673.0,0.00011578]
[1764641571307,0.00025354,86678.0,86675.0,0.24228248]
[1764641572258,0.00025354,86678.0,86677.0,0.29661171]
[1764641572471,0.00025354,86678.0,86677.0,0.38087024]
[1764641572618,0.00025354,86678.0,86677.0,0.47408024]
[1764641572865,0.00025354,86678.0,86677.0,0.15012853]
[1764641573067,0.23099435,86678.0,86673.0,0.01165339]
[1764641573278,0.24223683,86675.0,86673.0,0.00011578]
[1764641573480,0.01148803,86674.0,86673.0,0.00011578]
[1764641574284,0.04244079,86674.0,86673.0,0.00011578]
[1764641575329,0.01148803,86674.0,86673.0,0.00011578]
[1764641575521,0.05660079,86674.0,86673.0,0.00011578]
[1764641575700,0.05042193,86674.0,86673.0,0.00011578]
[1764641575896,0.02564803,86674.0,86673.0,0.00011578]
[1764641576951,0.05660079,86674.0,86673.0,0.00011578]
[1764641577249,0.02564803,86674.0,86673.0,0.00011578]
[1764641577454,0.01148803,86674.0,86673.0,0.00011578]
[1764641577742,0.2555227,86675.0,86673.0,0.00011578]
[1764641577945,2.0,86675.0,86673.0,0.00011578]
[1764641578120,0.0247739,86674.0,86673.0,0.00011578]
[1764641578287,0.24228391,86676.0,86673.0,0.04532578]
[1764641578288,2.23074958,86675.0,86673.0,0.04532578]
[1764641578502,0.0247739,86674.0,86673.0,0.00011578]
[1764641578711,0.25552348,86675.0,86673.0,0.00011578]
[1764641579150,0.25652348,86675.0,86673.0,0.00011578]
[1764641579439,0.25552348,86675.0,86673.0,0.00011578]
[1764641579655,0.0247739,86675.0,86674.0,0.15908]
[1764641579863,0.00025354,86678.0,86675.0,0.01153735]
[1764641580067,0.00025354,86678.0,86676.0,0.23074241]
[1764641580523,0.00025354,86678.0,86675.0,0.24228409]
[1764641580728,0.00025354,86678.0,86675.0,0.01153735]
[1764641580937,0.00025354,86678.0,86677.0,0.29661171]
[1764641581544,0.00025354,86678.0,86677.0,0.38982171]
[1764641581967,0.00125354,86678.0,86677.0,0.29661171]
[1764641582209,0.00025354,86678.0,86677.0,0.29661171]
[1764641582390,0.00025354,86678.0,86677.0,0.38982171]
[1764641582692,0.00125354,86678.0,86677.0,0.38982171]
[1764641584501,0.00125354,86678.0,86677.0,0.48410202]
[1764641584710,0.00125354,86678.0,86677.0,0.49559722]
[1764641585045,0.00125354,86678.0,86677.0,0.38982171]
[1764641585791,0.00025354,86678.0,86677.0,0.39082171]
[1764641586002,0.00025354,86678.0,86677.0,0.39182171]
[1764641587188,0.00025354,86678.0,86677.0,0.23174171]
[1764641587395,0.00025354,86678.0,86677.0,0.001]
[1764641587572,0.23099259,86678.0,86677.0,0.002]
[1764641587983,0.23148259,86678.0,86677.0,0.002]
[1764641588185,0.24228234,86676.0,86673.0,0.00011578]
[1764641588417,0.25377037,86676.0,86673.0,0.00011578]
[1764641588828,0.01148803,86675.0,86673.0,0.00011578]
[1764641589437,0.02302524,86676.0,86673.0,0.00011578]
[1764641589812,0.01174157,86678.0,86673.0,0.00011578]
[1764641590046,0.00025354,86678.0,86675.0,0.01153735]
[1764641590224,0.00025354,86678.0,86676.0,0.23074235]
[1764641590593,0.01179049,86678.0,86674.0,0.01153748]
[1764641590789,0.24253146,86678.0,86674.0,0.01153748]
[1764641591041,0.01179049,86678.0,86675.0,0.01153735]
[1764641591368,0.23073422,86680.0,86674.0,0.01153748]
[1764641591571,0.01828,86682.0,86679.0,0.07477681]
[1764641591788,0.05196845,86685.0,86682.0,0.01153642]
[1764641591997,0.02474566,86692.0,86689.0,0.23070738]
[1764641592207,0.07024845,86699.0,86693.0,0.01153495]
[1764641592410,0.01153442,86697.0,86693.0,0.01153495]
[1764641592828,0.02474566,86698.0,86694.0,0.09816434]
[1764641593039,0.05196845,86699.0,86696.0,0.30546373]
[1764641593252,0.5,86704.0,86696.0,0.30546373]
[1764641593253,0.02474566,86702.0,86699.0,0.01153415]
[1764641593459,0.0767157,86713.0,86710.0,0.01153269]
[1764641593693,0.05196845,86713.0,86712.0,0.23064858]
[1764641594098,0.05196845,86713.0,86711.0,0.23064862]
[1764641594716,0.05196845,86713.0,86709.0,0.01153282]
[1764641594922,0.05196845,86713.0,86711.0,0.23065124]
[1764641595306,0.05296845,86713.0,86711.0,0.23065124]
[1764641595595,0.05196845,86713.0,86710.0,0.01153269]
[1764641595981,0.05296845,86713.0,86711.0,0.23065124]
[1764641596193,0.05296845,86713.0,86710.0,0.01153269]
[1764641596194,0.0004402,86730.0,86712.0,0.06324]
[1764641596530,0.00055585,86730.0,86729.0,0.29284337]
[1764641596747,0.00055585,86730.0,86729.0,0.38524337]
[1764641598076,0.00155585,86730.0,86729.0,0.38524337]
[1764641598314,0.00055585,86730.0,86729.0,0.48036903]
[1764641598530,0.00220277,86730.0,86729.0,0.48036903]
[1764641598744,0.00320277,86730.0,86729.0,0.48036903]
[1764641598949,0.00220277,86730.0,86729.0,0.48036903]
[1764641601790,0.00220277,86730.0,86729.0,0.49186423]
[1764641602207,0.00220277,86730.0,86729.0,0.40452337]
[1764641602401,0.00220277,86730.0,86729.0,0.38624337]
[1764641603378,0.00220277,86730.0,86729.0,0.39773857]
[1764641603750,0.00220277,86730.0,86729.0,0.46026156]
[1764641603897,0.00220277,86730.0,86729.0,0.78326156]
[1764641604096,0.00220277,86730.0,86729.0,0.89848752]
[1764641605017,0.00220277,86730.0,86729.0,0.90148752]
[1764641605223,0.00220277,86730.0,86729.0,0.88999232]
[1764641605424,0.00220277,86730.0,86729.0,0.91972752]
[1764641606137,0.00220277,86730.0,86729.0,0.90148752]
[1764641606376,0.00220277,86730.0,86729.0,0.84570933]
[1764641607426,0.00220277,86730.0,86729.0,0.91972752]
[1764641608027,0.0004,86740.0,86739.0,0.23057678]
[1764641608227,0.00078542,86740.0,86739.0,0.39503194]
[1764641608437,0.00078542,86740.0,86739.0,0.48743194]
[1764641609454,0.00078542,86740.0,86739.0,0.47593674]
[1764641609654,0.00078542,86740.0,86739.0,0.45769674]
[1764641609954,0.00078542,86740.0,86739.0,0.47693674]
[1764641610309,0.00078542,86740.0,86739.0,0.47793674]
[1764641610762,0.23052491,86759.0,86750.0,0.01152737]
[1764641610963,4.888e-05,86759.0,86756.0,0.23052941]
[1764641611164,4.888e-05,86759.0,86758.0,0.06499]
[1764641611805,4.888e-05,86759.0,86758.0,0.38842629]
[1764641611983,4.888e-05,86759.0,86758.0,0.06499]
[1764641613616,4.888e-05,86759.0,86758.0,0.1579]
[1764641613768,4.888e-05,86759.0,86758.0,0.22807184]
[1764641615063,4.888e-05,86759.0,86756.0,0.24205793]
[1764641615234,4.888e-05,86759.0,86758.0,0.06499]
[1764641615707,4.888e-05,86759.0,86758.0,0.16245]
[1764641615922,4.888e-05,86759.0,86758.0,0.39297629]
[1764641616370,4.888e-05,86759.0,86758.0,0.41723969]
[1764641616829,4.888e-05,86759.0,86758.0,0.31977969]
[1764641617056,4.888e-05,86759.0,86758.0,0.1867134]
[1764641617263,4.888e-05,86759.0,86758.0,0.29551629]
[1764641617695,4.888e-05,86759.0,86758.0,0.39297629]
[1764641618159,0.02474888,86759.0,86756.0,0.01152658]
[1764641618360,0.02474888,86759.0,86756.0,0.24205561]
[1764641618629,4.888e-05,86759.0,86756.0,0.24205561]
[1764641618787,0.00096677,86759.0,86756.0,0.24205561]
[1764641618987,4.888e-05,86759.0,86758.0,0.06636]
[1764641619398,0.00096677,86759.0,86754.0,0.01152684]
[1764641619635,4.888e-05,86759.0,86755.0,0.01152671]
[1764641619861,0.01152644,86757.0,86752.0,0.01152711]
[1764641620017,0.01152658,86756.0,86748.0,0.10898764]
[1764641620221,0.01152684,86754.0,86749.0,0.05941751]
[1764641620416,0.05196845,86750.0,86749.0,0.04789]
[1764641620588,0.01152817,86744.0,86720.0,0.86217651]
[1764641620784,0.01148803,86740.0,86732.0,0.01152976]
[1764641621032,0.01152897,86738.0,86733.0,0.24212236]
[1764641621207,0.05196845,86734.0,86729.0,0.24213135]
[1764641621402,0.05196845,86734.0,86731.0,0.0115299]
[1764641621634,0.05196845,86734.0,86733.0,0.11361]
[1764641622075,0.05196845,86734.0,86733.0,0.19016697]
[1764641622226,0.05196845,86734.0,86733.0,0.21107]
[1764641622710,0.05196845,86734.0,86733.0,0.11361]
[1764641622913,0.05196845,86734.0,86733.0,0.04725]
[1764641623738,0.05196845,86734.0,86727.0,0.28930655]
[1764641623739,0.06349795,86734.0,86727.0,0.28930655]
[1764641623918,0.01153043,86727.0,86721.0,0.01153123]
[1764641624145,0.0115303,86728.0,86724.0,0.01153083]
[1764641624324,0.0115303,86728.0,86726.0,0.04725]
[1764641624721,0.01153016,86729.0,86726.0,0.04725]
[1764641625114,0.01148803,86732.0,86727.0,0.01153043]
[1764641625324,0.02475382,86733.0,86731.0,0.06636]
[1764641625529,0.05196845,86734.0,86732.0,0.0257577]
[1764641626336,0.29409044,86734.0,86729.0,0.01153016]
[1764641626549,0.01152976,86732.0,86728.0,0.0115303]
[1764641627863,0.01152976,86732.0,86726.0,0.00038542]
[1764641627864,0.25565374,86729.0,86726.0,0.00038542]
[1764641628084,0.02475382,86731.0,86726.0,0.00038542]
[1764641628279,0.24212273,86733.0,86726.0,0.00038542]
[1764641628280,0.02475382,86733.0,86732.0,0.23059539]
[1764641628468,0.05196845,86732.0,86730.0,0.01153003]
[1764641629098,0.05196845,86732.0,86731.0,0.06636]
[1764641630559,0.05196845,86732.0,86727.0,0.24213878]
[1764641630688,0.05196845,86732.0,86729.0,0.01153016]
[1764641630895,0.01148803,86730.0,86729.0,0.01153016]
[1764641631095,0.05196845,86732.0,86731.0,0.04725]
[1764641634626,0.05196845,86732.0,86731.0,0.11361]
[1764641634800,0.05196845,86732.0,86731.0,0.29078008]
[1764641635252,0.05196845,86732.0,86731.0,0.19332008]
[1764641637958,0.01153016,86729.0,86723.0,0.01153096]
[1764641638149,0.23060603,86728.0,86724.0,0.01153083]
[1764641638574,0.01153016,86729.0,86725.0,0.0115307]
[1764641638776,0.01153016,86729.0,86727.0,0.06636]
[1764641639092,0.24212795,86731.0,86727.0,0.06636]
[1764641639450,0.0115299,86731.0,86728.0,0.1089903]
[1764641639667,0.0115299,86731.0,86728.0,0.33959481]
[1764641640206,0.06349821,86732.0,86729.0,0.01153016]
[1764641640554,2.0,86737.0,86736.0,0.23058312]
[1764641640788,0.34124,86745.0,86737.0,0.06636]
[1764641641002,0.0115283,86743.0,86737.0,0.16382]
[1764641641541,0.23060785,86728.0,86726.0,0.00038542]
[1764641641778,0.09230648,86727.0,86726.0,0.00038542]
[1764641641994,2.1624525,86727.0,86726.0,0.00038542]
[1764641642331,2.56744022,86727.0,86726.0,0.00038542]
[1764641642535,2.56744022,86727.0,86699.0,0.00146711]
[1764641642536,2.2306805,86700.0,86699.0,0.00146711]
[1764641642736,2.67965191,86700.0,86699.0,0.00158276]
[1764641642939,2.705593,86700.0,86699.0,0.00158276]
[1764641645151,2.7236842,86700.0,86699.0,0.00158276]
[1764641645431,2.75458192,86700.0,86699.0,0.00158276]
[1764641645566,2.79901371,86700.0,86699.0,0.00158276]
[1764641645767,2.76811599,86700.0,86699.0,0.00158276]
[1764641646676,2.83366703,86700.0,86699.0,0.00158276]
[1764641647027,2.822179,86700.0,86699.0,0.00158276]
[1764641647229,2.80280559,86700.0,86699.0,0.00158276]
[1764641648733,2.82089753,86700.0,86699.0,0.00158276]
[1764641649785,2.72864651,86700.0,86699.0,0.00158276]
[1764641649985,2.72368494,86700.0,86699.0,0.00158276]
[1764641650200,2.78620793,86700.0,86699.0,0.00158276]
[1764641650433,0.01153841,86667.0,86659.0,0.01153948]
[1764641650562,0.01153761,86673.0,86662.0,0.01153908]
[1764641650563,0.01148803,86665.0,86662.0,0.01153908]
[1764641650769,0.24228688,86675.0,86672.0,0.11589]
[1764641651335,0.01153708,86677.0,86674.0,0.06627]
[1764641651537,0.01153735,86675.0,86672.0,0.04962]
[1764641651671,0.02302564,86673.0,86663.0,0.01153894]
[1764641651874,0.01148803,86673.0,86670.0,0.01153801]
[1764641652072,0.01148803,86673.0,86672.0,0.04962]
[1764641653817,0.05196845,86680.0,86673.0,0.01153761]
[1764641654033,0.05196845,86680.0,86679.0,0.06627]
[1764641654441,0.05196845,86680.0,86679.0,0.15941]
[1764641655002,0.323,86689.0,86679.0,0.15941]
[1764641655003,0.01148803,86695.0,86690.0,0.24223985]
[1764641655241,0.01153495,86693.0,86689.0,0.04962]
[1764641656638,0.01153495,86693.0,86689.0,0.06115548]
[1764641657390,0.01153508,86692.0,86689.0,0.04962]
[1764641657606,0.01153535,86690.0,86685.0,0.01153602]
[1764641657781,0.01153535,86690.0,86686.0,0.01153588]
[1764641658156,0.24223747,86692.0,86687.0,0.24225085]
[1764641658539,0.24223747,86692.0,86688.0,0.01153562]
[1764641658767,0.01148803,86695.0,86688.0,0.01153562]
[1764641658768,0.01148803,86695.0,86689.0,0.24224525]
[1764641658963,0.02302272,86695.0,86690.0,0.01153535]
[1764641659423,0.2422354,86693.0,86688.0,0.01153562]
[1764641659832,0.01153415,86699.0,86692.0,0.11589]
[1764641660054,0.01148803,86695.0,86690.0,0.01153535]
[1764641660260,0.01148803,86689.0,86687.0,0.24225071]
[1764641662436,0.01153522,86691.0,86683.0,0.06115628]
[1764641662437,0.01153562,86688.0,86683.0,0.04962]
[1764641662637,0.06798648,86684.0,86683.0,0.00011578]
[1764641662798,2.06798648,86684.0,86683.0,0.00011578]
[1764641662994,2.11300648,86684.0,86683.0,0.00011578]
[1764641664642,2.11400648,86684.0,86683.0,0.00011578]
[1764641665039,2.06898648,86684.0,86683.0,0.00062278]
[1764641665246,2.09367191,86684.0,86683.0,0.00062278]
[1764641665450,2.13869191,86684.0,86683.0,0.00062278]
[1764641665721,2.21637407,86684.0,86683.0,0.00062278]
[1764641666133,2.07765388,86684.0,86683.0,0.00062278]
[1764641666523,2.05296845,86684.0,86683.0,0.00062278]
[1764641667780,0.05296845,86684.0,86683.0,0.16003278]
[1764641668040,0.05296845,86684.0,86683.0,0.39075852]
[1764641668320,0.05296845,86684.0,86683.0,0.29761852]
[1764641668873,0.05296845,86684.0,86683.0,0.39075852]
[1764641669118,0.001,86684.0,86683.0,0.39075852]
[1764641669893,2.0,86693.0,86691.0,0.01153522]
[1764641670081,0.02471467,86692.0,86691.0,0.01153522]
[1764641670276,2.0,86693.0,86692.0,0.04682]
[1764641670522,0.5,86698.0,86694.0,0.29126647]
[1764641670523,0.01148803,86697.0,86694.0,0.29126647]
[1764641670840,0.03623658,86697.0,86694.0,0.29126647]
[1764641671075,0.02474855,86697.0,86694.0,0.29126647]
[1764641671257,0.05560999,86697.0,86696.0,0.06057]
[1764641671623,0.03086144,86697.0,86696.0,0.06057]
[1764641671936,0.05660999,86697.0,86696.0,0.06057]
[1764641672104,0.02574855,86697.0,86696.0,0.06057]
[1764641672975,0.02474855,86697.0,86696.0,0.06057]
[1764641673331,0.02574855,86697.0,86696.0,0.06057]
[1764641673956,0.001,86697.0,86696.0,0.06057]
[1764641674276,0.02574855,86697.0,86696.0,0.15689]
[1764641674493,0.001,86697.0,86696.0,0.15689]
[1764641674719,0.02574855,86697.0,86696.0,0.06057]
[1764641674879,0.001,86697.0,86696.0,0.06057]
[1764641675059,0.02574855,86697.0,86696.0,0.06057]
[1764641675267,0.001,86697.0,86696.0,0.06057]
[1764641675489,0.02574855,86697.0,86696.0,0.06057]
[1764641675683,0.001,86697.0,86696.0,0.06057]
[1764641675888,0.02574855,86697.0,86696.0,0.06057]
[1764641676063,0.001,86697.0,86696.0,0.06057]
[1764641676467,0.02574855,86697.0,86696.0,0.06057]
[1764641676756,0.001,86697.0,86696.0,0.06057]
[1764641677066,0.02574855,86697.0,86696.0,0.06057]
[1764641677385,0.03200036,86697.0,86694.0,0.01153482]
[1764641678908,0.03100036,86696.0,86692.0,0.28905453]
[1764641679301,0.03100036,86696.0,86692.0,0.38809453]
[1764641679498,0.03100036,86696.0,86693.0,0.09904]
[1764641679713,0.03100036,86696.0,86695.0,0.06195]
[1764641679923,0.05574891,86697.0,86695.0,0.06195]
[1764641680362,0.05574891,86697.0,86696.0,0.06195]
[1764641680363,0.03100036,86697.0,86696.0,0.06195]
[1764641680550,0.001,86696.0,86694.0,0.01153482]
[1764641680844,0.02474855,86697.0,86694.0,0.01153482]
[1764641681046,0.26697106,86698.0,86694.0,0.01153482]
[1764641681246,0.001,86697.0,86695.0,0.09904]
[1764641681448,0.001,86697.0,86696.0,0.06195]
[1764641682034,0.001,86697.0,86696.0,0.16099]
[1764641682418,0.03100036,86720.0,86713.0,0.23064592]
[1764641682619,0.04928036,86721.0,86719.0,0.34138996]
[1764641682826,0.04928036,86721.0,86720.0,0.06195]
[1764641683023,0.03100036,86721.0,86719.0,0.04881]
[1764641683234,0.02480268,86721.0,86719.0,0.04881]
[1764641683444,0.01153149,86719.0,86714.0,0.01153216]
[1764641683650,0.01153149,86719.0,86715.0,0.01153203]
[1764641684434,0.01153163,86718.0,86710.0,0.04881]
[1764641684634,0.05196845,86711.0,86710.0,0.04881]
[1764641685042,0.05196845,86713.0,86710.0,0.04881]
[1764641685221,0.28261494,86713.0,86710.0,0.04881]
[1764641685423,0.01153336,86705.0,86701.0,0.01153389]
[1764641685631,0.01153322,86706.0,86702.0,0.01153375]
[1764641686090,0.25368021,86708.0,86703.0,0.01153362]
[1764641686294,0.24220534,86704.0,86699.0,0.01153415]
[1764641686499,0.05687803,86703.0,86699.0,0.01153415]
[1764641686693,0.05687803,86703.0,86701.0,0.001]
[1764641686920,0.28755255,86703.0,86699.0,0.01153415]
[1764641687111,0.01148803,86700.0,86699.0,0.01153415]
[1764641687325,0.01153362,86703.0,86699.0,0.01153415]
[1764641687731,0.01153362,86703.0,86700.0,0.01153402]
[1764641688680,0.01148803,86703.0,86701.0,0.04881]
[1764641689295,0.28261626,86713.0,86701.0,0.04881]
[1764641689296,0.05196845,86713.0,86709.0,0.242187]
[1764641689498,0.05196845,86713.0,86711.0,0.23064929]
[1764641689708,0.05196845,86713.0,86712.0,0.11076]
[1764641690999,0.05196845,86713.0,86712.0,0.2098]
[1764641691704,0.05296845,86713.0,86712.0,0.2098]
[1764641691876,0.05196845,86713.0,86712.0,0.2098]
[1764641692376,0.05296845,86713.0,86712.0,0.2098]
[1764641693160,0.001,86713.0,86712.0,0.3057426]
[1764641693512,0.001,86713.0,86712.0,0.2098]
[1764641694822,0.001,86713.0,86712.0,0.2095237]
[1764641697757,0.00011556,86721.0,86718.0,0.01153163]
[1764641697928,0.00011556,86721.0,86719.0,0.23062996]
[1764641698601,0.00011556,86721.0,86720.0,0.16099]
[1764641698886,0.00011556,86721.0,86720.0,0.06195]
[1764641699318,0.00011556,86721.0,86713.0,0.23064592]
[1764641699319,0.04577556,86721.0,86712.0,0.04881]
[1764641699501,0.01164679,86721.0,86717.0,0.01153176]
[1764641699698,0.00011556,86721.0,86718.0,0.01153163]
[1764641699903,0.00011556,86721.0,86718.0,0.06034163]
[1764641700118,0.00011556,86721.0,86720.0,0.2925773]
[1764641700484,0.00011556,86721.0,86720.0,0.3916173]
[1764641700697,0.00011556,86721.0,86720.0,0.2306273]
[1764641700879,0.00011556,86721.0,86720.0,0.2925773]
[1764641701095,0.00011556,86721.0,86720.0,0.3916173]
[1764641702333,0.00011556,86721.0,86720.0,0.16099]
[1764641702698,0.00011556,86721.0,86719.0,0.23062744]
[1764641703647,0.00011556,86721.0,86720.0,0.06195]
[1764641704278,0.00011556,86721.0,86720.0,0.16099]
[1764641704688,0.00011556,86721.0,86720.0,0.06195]
[1764641704907,0.00011556,86721.0,86720.0,0.16099]
[1764641705372,0.00011556,86721.0,86720.0,0.24867217]
[1764641705788,0.01824,86738.0,86720.0,0.24867217]
[1764641705789,0.02479483,86748.0,86747.0,0.23055552]
[1764641705929,0.05196845,86759.0,86758.0,0.23052629]
[1764641706094,0.05235411,86759.0,86758.0,0.43249629]
[1764641706303,0.03632657,86772.0,86765.0,0.24203299]
[1764641706604,0.05196845,86766.0,86765.0,0.24203299]
[1764641707017,0.05196845,86766.0,86765.0,0.39889299]
[1764641707995,0.05196845,86766.0,86765.0,0.30505299]
[1764641708161,0.05196845,86766.0,86765.0,0.39889299]
[1764641708358,0.0001156,86772.0,86771.0,0.23049175]
[1764641708690,0.0001156,86772.0,86771.0,0.33862175]
[1764641708850,0.0001156,86772.0,86771.0,0.43246175]
[1764641709640,0.0001156,86772.0,86749.0,0.34582172]
[1764641709641,0.01152458,86771.0,86761.0,0.23051801]
[1764641709856,0.05196845,86763.0,86761.0,0.01152591]
[1764641710056,0.05196845,86763.0,86762.0,0.01824]
[1764641710275,0.05196845,86763.0,86762.0,0.08126]
[1764641710481,0.05196845,86763.0,86762.0,0.31177566]
[1764641710899,0.05196845,86763.0,86762.0,0.08126]
[1764641711127,0.05196845,86763.0,86762.0,0.40561566]
[1764641711453,0.23045791,86784.0,86762.0,0.40561566]
[1764641711454,0.56539344,86780.0,86771.0,0.23049175]
[1764641711570,0.01152365,86778.0,86771.0,0.33862175]
[1764641711776,0.00144476,86772.0,86771.0,0.04511]
[1764641711974,0.01293279,86772.0,86771.0,0.04511]
[1764641712465,0.01293279,86772.0,86763.0,0.230513]
[1764641712466,0.01152498,86768.0,86763.0,0.24203865]
[1764641712664,0.06345648,86764.0,86763.0,0.24203865]
[1764641713060,0.05196845,86764.0,86763.0,0.30505865]
[1764641713228,0.05196845,86764.0,86763.0,0.39889865]
[1764641713623,0.05196845,86764.0,86763.0,0.24203865]
[1764641714169,0.05196845,86764.0,86763.0,0.230513]
[1764641714307,0.05196845,86764.0,86761.0,0.01824]
[1764641714308,0.01152565,86763.0,86761.0,0.01824]
[1764641714504,0.06349396,86764.0,86761.0,0.01824]
[1764641715112,0.06349396,86764.0,86759.0,0.02976618]
[1764641715113,0.01152565,86763.0,86759.0,0.02976618]
[1764641715934,0.0004,86780.0,86766.0,0.01152525]
[1764641716176,0.0004,86780.0,86771.0,0.29351175]
[1764641716347,0.05196845,86770.0,86769.0,0.27560706]
[1764641716544,0.05196845,86770.0,86769.0,0.33862706]
[1764641716854,0.0004,86780.0,86771.0,0.23049175]
[1764641717042,0.0004,86780.0,86771.0,0.29351175]
[1764641717430,0.0004,86780.0,86771.0,0.38735175]
[1764641717853,0.0004,86780.0,86771.0,0.39884695]
[1764641718054,0.0004,86780.0,86771.0,0.38735175]
[1764641718257,0.00144476,86772.0,86771.0,0.50257771]
[1764641718459,0.00144476,86772.0,86771.0,0.50357771]
[1764641718775,0.00144476,86772.0,86771.0,0.38735175]
[1764641718927,0.00144476,86772.0,86771.0,0.40559175]
[1764641719127,0.00144476,86772.0,86771.0,0.40659175]
[1764641719322,0.01152299,86783.0,86779.0,0.01152352]
[1764641719589,0.01152299,86783.0,86771.0,0.24301598]
[1764641719590,0.03426339,86780.0,86771.0,0.24301598]
[1764641719738,0.05196845,86772.0,86771.0,0.05516759]
[1764641719974,0.05196845,86772.0,86771.0,0.004]
[1764641719975,0.08619648,86772.0,86771.0,0.004]
[1764641720368,0.06345648,86772.0,86771.0,0.003]
[1764641720573,0.06345648,86772.0,86766.0,0.01152525]
[1764641720834,0.06345648,86772.0,86771.0,0.001]
[1764641721169,0.05196845,86772.0,86770.0,0.23049435]
[1764641721367,0.01148803,86771.0,86770.0,0.23049435]
[1764641721760,0.05196845,86772.0,86769.0,0.24202083]
[1764641721968,0.01148803,86770.0,86769.0,0.24202083]
[1764641722174,0.01148803,86770.0,86767.0,0.24202541]
[1764641722539,0.01148803,86770.0,86768.0,0.23049722]
[1764641722691,0.01148803,86770.0,86769.0,0.07376141]
[1764641723393,0.05196845,86772.0,86770.0,0.23049441]
[1764641723590,0.05196845,86772.0,86771.0,0.06302]
[1764641724039,0.05196845,86772.0,86771.0,0.15686]
[1764641724855,0.05196845,86772.0,86771.0,0.15886]
[1764641725065,0.00025309,86780.0,86771.0,0.15886]
[1764641725066,0.00025309,86780.0,86779.0,0.2304705]
[1764641725267,0.00025309,86780.0,86779.0,0.3386005]
[1764641725472,0.00025309,86780.0,86779.0,0.4324405]
[1764641726892,0.00025309,86780.0,86779.0,0.4506805]
[1764641727113,0.00025309,86780.0,86779.0,0.4516805]
[1764641727315,0.00025309,86780.0,86779.0,0.5452496]
[1764641728347,0.00025309,86780.0,86779.0,0.5442496]
[1764641729685,0.01218758,86807.0,86789.0,0.23044395]
[1764641729886,0.01218758,86807.0,86799.0,0.2304174]
[1764641730087,0.00051554,86800.0,86799.0,0.3567874]
[1764641730386,0.00051554,86800.0,86799.0,0.53807495]
[1764641730792,0.01218758,86807.0,86806.0,0.23039882]
[1764641731024,0.01218758,86807.0,86806.0,0.29099882]
[1764641731350,0.01218758,86807.0,86806.0,0.38821882]
[1764641732272,0.01218758,86807.0,86806.0,0.38921882]
[1764641732515,0.01218758,86807.0,86806.0,0.4583812]
[1764641733368,0.0001,86814.0,86809.0,0.23039085]
[1764641733562,0.01151609,86835.0,86826.0,0.24186135]
[1764641733563,2.0,86833.0,86826.0,0.24186135]
[1764641733783,2.01151649,86832.0,86827.0,0.04952494]
[1764641733957,0.01151675,86830.0,86825.0,0.01151742]
[1764641734265,0.01151675,86830.0,86826.0,0.01151728]
[1764641734413,0.01151675,86830.0,86829.0,0.0606]
[1764641734625,0.2303484,86825.0,86824.0,0.04898]
[1764641734821,0.01151715,86827.0,86824.0,0.04898]
[1764641735021,0.24186285,86827.0,86824.0,0.04898]
[1764641735460,0.00142282,86825.0,86824.0,0.04898]
[1764641735868,0.00142282,86825.0,86824.0,0.11134]
[1764641736295,0.01151808,86820.0,86813.0,0.04898]
[1764641736487,0.05196845,86818.0,86815.0,0.02975874]
[1764641736893,0.23034023,86829.0,86818.0,0.01151834]
[1764641737074,0.05196845,86822.0,86821.0,0.01151795]
[1764641737280,0.03100036,86847.0,86832.0,0.23032983]
[1764641737457,0.0004,86850.0,86849.0,0.33965474]
[1764641737819,0.00078496,86850.0,86849.0,0.33965474]
[1764641738018,0.00078496,86850.0,86849.0,0.52274603]
[1764641739638,0.00078496,86850.0,86849.0,0.54098603]
[1764641740289,0.00078496,86850.0,86849.0,0.54198603]
[1764641740628,0.00078496,86850.0,86849.0,0.55448123]
[1764641740904,0.52377,86897.0,86883.0,0.01150973]
[1764641741111,0.05196845,86884.0,86881.0,0.05851999]
[1764641741317,0.05196845,86884.0,86883.0,0.23019462]
[1764641741517,0.00013788,86889.0,86888.0,0.29254138]
[1764641741729,0.00013788,86889.0,86883.0,0.24170435]
[1764641741730,0.00013788,86889.0,86885.0,0.01150946]
[1764641741937,0.05196845,86886.0,86884.0,0.23019012]
[1764641742107,0.05196845,86886.0,86885.0,0.22753593]
[1764641742251,0.05196845,86886.0,86885.0,0.12859593]
[1764641742450,0.05196845,86886.0,86882.0,0.00997806]
[1764641742874,0.06347778,86886.0,86882.0,0.00997806]
[1764641743067,0.05196845,86886.0,86885.0,0.06236]
[1764641743269,0.23016106,86896.0,86883.0,0.11044973]
[1764641743270,0.0004,86900.0,86897.0,0.01150787]
[1764641743491,0.0004,86900.0,86899.0,0.10937]
[1764641743907,0.0004,86900.0,86899.0,0.20831]
[1764641744553,0.0004,86900.0,86899.0,0.28232819]
[1764641744787,2.0,86931.0,86925.0,0.01150417]
[1764641744892,2.00011542,86931.0,86927.0,0.0115039]
[1764641745091,2.0,86930.0,86928.0,0.23007546]
[1764641745356,0.00011542,86931.0,86930.0,0.06236]
[1764641745559,0.00011542,86931.0,86930.0,0.1579659]
[1764641745710,0.00011542,86931.0,86930.0,0.2569059]
[1764641747828,0.00011542,86931.0,86930.0,0.1579659]
[1764641748238,0.00488396,86931.0,86930.0,0.06236]
[1764641748461,0.01150364,86929.0,86924.0,0.01828]
[1764641748663,0.00488396,86931.0,86924.0,0.01828]
[1764641748664,0.05196845,86928.0,86924.0,0.01828]
[1764641748845,0.05196845,86928.0,86916.0,0.01150536]
[1764641748846,0.01150496,86919.0,86915.0,0.04701]
[1764641748991,0.01150496,86919.0,86907.0,0.09894]
[1764641748992,0.01150509,86918.0,86916.0,0.009402]
[1764641749192,0.01150496,86919.0,86916.0,0.009402]
[1764641749618,0.01148803,86918.0,86916.0,0.009402]
[1764641750018,0.01148803,86909.0,86901.0,0.01828]
[1764641750235,0.23015842,86897.0,86886.0,0.14791466]
[1764641750438,0.01150814,86895.0,86889.0,0.04701]
[1764641750636,0.01150747,86900.0,86899.0,0.04701]
[1764641751046,0.01150734,86901.0,86899.0,0.057947]
[1764641751259,0.05196845,86905.0,86900.0,0.06236]
[1764641751438,0.05196845,86905.0,86904.0,0.06236]
[1764641751992,0.05196845,86905.0,86899.0,0.057947]
[1764641752144,0.07496329,86905.0,86899.0,0.057947]
[1764641752345,0.01150761,86899.0,86892.0,0.01150853]